[Event "Titled Tuesday Blitz March 15 Early 2022"]
[White "Perez Gormaz, Matias"]
[Black "Gaehwiler, Gabriel"]
[WhiteFideId "3406342"]
[BlackFideId "1314530"]
[WhiteElo "2327"]
[BlackElo "2383"]
[Result "0-1"]
[Round "08"]
[TimeControl "180+1"]
[Date "2022.03.15"]
[WhiteClock "0:00:04"]
[BlackClock "0:00:10"]

1. e4 {[%clk 0:02:55]}  c5 {[%clk 0:02:59]} 2. Nf3 {[%clk 0:02:55]}  d6 {[%clk 0:02:59]} 3. d4 {[%clk 0:02:53]}  cxd4 {[%clk 0:03:00]} 4. Nxd4 {[%clk 0:02:54]}  Nf6 {[%clk 0:03:00]} 5. Nc3 {[%clk 0:02:55]}  Nc6 {[%clk 0:03:00]} 6. Be2 {[%clk 0:02:55]}  a6 {[%clk 0:02:56]} 7. O-O {[%clk 0:02:53]}  e6 {[%clk 0:02:56]} 8. Be3 {[%clk 0:02:51]}  Bd7 {[%clk 0:02:56]} 9. f4 {[%clk 0:02:46]}  Nxd4 {[%clk 0:02:56]} 10. Bxd4 {[%clk 0:02:46]}  Bc6 {[%clk 0:02:56]} 11. Bd3 {[%clk 0:02:42]}  Be7 {[%clk 0:02:55]} 12. Kh1 {[%clk 0:02:41]}  b5 {[%clk 0:02:52]} 13. a3 {[%clk 0:02:41]}  O-O {[%clk 0:02:25]} 14. Qf3 {[%clk 0:02:36]}  Rc8 {[%clk 0:02:14]} 15. Rae1 {[%clk 0:02:34]}  Nd7 {[%clk 0:02:01]} 16. Qh3 {[%clk 0:02:05]}  e5 {[%clk 0:01:59]} 17. Be3 {[%clk 0:01:49]}  exf4 {[%clk 0:01:46]} 18. Bxf4 {[%clk 0:01:47]}  Ne5 {[%clk 0:01:45]} 19. Rd1 {[%clk 0:01:47]}  Qd7 {[%clk 0:01:37]} 20. Qg3 {[%clk 0:01:34]}  Qe6 {[%clk 0:01:33]} 21. Ne2 {[%clk 0:01:23]}  Qg6 {[%clk 0:01:26]} 22. Qe3 {[%clk 0:01:17]}  Ng4 {[%clk 0:01:09]} 23. Qg3 {[%clk 0:01:14]}  Ne5 {[%clk 0:01:09]} 24. Qe3 {[%clk 0:01:14]}  Ng4 {[%clk 0:01:06]} 25. Qg3 {[%clk 0:01:13]}  Nf6 {[%clk 0:01:06]} 26. Bxd6 {[%clk 0:00:40]}  Qxg3 {[%clk 0:00:52]} 27. Bxg3 {[%clk 0:00:41]}  Nxe4 {[%clk 0:00:52]} 28. Bf4 {[%clk 0:00:28]}  Bf6 {[%clk 0:00:50]} 29. c3 {[%clk 0:00:25]}  Rfe8 {[%clk 0:00:46]} 30. Nd4 {[%clk 0:00:19]}  Bxd4 {[%clk 0:00:39]} 31. cxd4 {[%clk 0:00:20]}  Bd5 {[%clk 0:00:39]} 32. h3 {[%clk 0:00:19]}  f6 {[%clk 0:00:39]} 33. Kh2 {[%clk 0:00:19]}  Kf7 {[%clk 0:00:39]} 34. Rfe1 {[%clk 0:00:19]}  Rc6 {[%clk 0:00:38]} 35. Rc1 {[%clk 0:00:18]}  Rxc1 {[%clk 0:00:23]} 36. Rxc1 {[%clk 0:00:19]}  Nf2 {[%clk 0:00:23]} 37. Rc7+ {[%clk 0:00:17]}  Kg8 {[%clk 0:00:20]} 38. Bf5 {[%clk 0:00:13]}  Be4 {[%clk 0:00:15]} 39. Bd7 {[%clk 0:00:12]}  Rd8 {[%clk 0:00:13]} 40. Ra7 {[%clk 0:00:10]}  Nd3 {[%clk 0:00:09]} 41. Be6+ {[%clk 0:00:10]}  Kh8 {[%clk 0:00:09]} 42. Bc7 {[%clk 0:00:10]}  Re8 {[%clk 0:00:09]} 43. d5 {[%clk 0:00:11]}  Nc5 {[%clk 0:00:07]} 44. Bd6 {[%clk 0:00:09]}  Nxe6 {[%clk 0:00:07]} 45. dxe6 {[%clk 0:00:09]}  Rxe6 {[%clk 0:00:06]} 46. Rxa6 {[%clk 0:00:05]}  h5 {[%clk 0:00:06]} 47. Rb6 {[%clk 0:00:05]}  Bd3 {[%clk 0:00:06]} 48. Bc5 {[%clk 0:00:02]}  Re2 {[%clk 0:00:06]} 49. Rb8+ {[%clk 0:00:02]}  Kh7 {[%clk 0:00:07]} 50. Kg1 {[%clk 0:00:01]}  Rxb2 {[%clk 0:00:06]} 51. Bb4 {[%clk 0:00:01]}  Be4 {[%clk 0:00:06]} 52. g4 {[%clk 0:00:01]}  Rg2+ {[%clk 0:00:05]} 53. Kf1 {[%clk 0:00:02]}  hxg4 {[%clk 0:00:05]} 54. hxg4 {[%clk 0:00:02]}  Rxg4 {[%clk 0:00:05]} 55. Kf2 {[%clk 0:00:02]}  Bd3 {[%clk 0:00:06]} 56. Ke3 {[%clk 0:00:02]}  Bc4 {[%clk 0:00:06]} 57. Rb7 {[%clk 0:00:03]}  Rg3+ {[%clk 0:00:06]} 58. Kd4 {[%clk 0:00:03]}  Kg6 {[%clk 0:00:05]} 59. Bf8 {[%clk 0:00:03]}  Rd3+ {[%clk 0:00:05]} 60. Kc5 {[%clk 0:00:03]}  Kf5 {[%clk 0:00:06]} 61. Rxg7 {[%clk 0:00:03]}  Rxa3 {[%clk 0:00:06]} 62. Bd6 {[%clk 0:00:04]}  Rd3 {[%clk 0:00:06]} 63. Rg1 {[%clk 0:00:04]}  Rd5+ {[%clk 0:00:06]} 64. Kc6 {[%clk 0:00:04]}  Ke6 {[%clk 0:00:06]} 65. Re1+ {[%clk 0:00:04]}  Kf7 {[%clk 0:00:06]} 66. Bc5 {[%clk 0:00:04]}  Rd3 {[%clk 0:00:05]} 67. Rg1 {[%clk 0:00:02]}  f5 {[%clk 0:00:05]} 68. Re1 {[%clk 0:00:02]}  Kf6 {[%clk 0:00:06]} 69. Be7+ {[%clk 0:00:02]}  Kg6 {[%clk 0:00:06]} 70. Bc5 {[%clk 0:00:02]}  Kg5 {[%clk 0:00:06]} 71. Bd6 {[%clk 0:00:03]}  Kg4 {[%clk 0:00:06]} 72. Rg1+ {[%clk 0:00:03]}  Kf3 {[%clk 0:00:06]} 73. Re1 {[%clk 0:00:02]}  Re3 {[%clk 0:00:06]} 74. Rxe3+ {[%clk 0:00:02]}  Kxe3 {[%clk 0:00:07]} 75. Kc5 {[%clk 0:00:02]}  f4 {[%clk 0:00:08]} 76. Be7 {[%clk 0:00:02]}  f3 {[%clk 0:00:08]} 77. Bh4 {[%clk 0:00:03]}  Ke2 {[%clk 0:00:08]} 78. Kb4 {[%clk 0:00:03]}  f2 {[%clk 0:00:09]} 79. Bxf2 {[%clk 0:00:04]}  Kxf2 {[%clk 0:00:10]} 0-1


[Site "https://www.chess.com"]

[Event "Titled Tuesday Blitz March 15 Early 2022"]
[White "Petersson, Kjell"]
[Black "Alinasab, Mobina"]
[WhiteFideId "1705148"]
[BlackFideId "12528897"]
[WhiteElo "2009"]
[BlackElo "2052"]
[Result "0-1"]
[Round "08"]
[TimeControl "180+1"]
[Date "2022.03.15"]
[WhiteClock "0:00:07"]
[BlackClock "0:00:23"]

1. d4 {[%clk 0:03:00]}  Nf6 {[%clk 0:02:58]} 2. Bf4 {[%clk 0:03:01]}  e6 {[%clk 0:02:58]} 3. e3 {[%clk 0:03:00]}  b6 {[%clk 0:02:58]} 4. Nf3 {[%clk 0:02:59]}  Bb7 {[%clk 0:02:59]} 5. Bd3 {[%clk 0:02:59]}  Be7 {[%clk 0:02:58]} 6. Nbd2 {[%clk 0:02:59]}  c5 {[%clk 0:02:59]} 7. Nc4 {[%clk 0:02:57]}  d6 {[%clk 0:02:57]} 8. c3 {[%clk 0:02:54]}  O-O {[%clk 0:02:55]} 9. O-O {[%clk 0:02:53]}  a6 {[%clk 0:02:54]} 10. Qe2 {[%clk 0:02:20]}  cxd4 {[%clk 0:02:35]} 11. exd4 {[%clk 0:02:19]}  b5 {[%clk 0:02:36]} 12. Ncd2 {[%clk 0:02:18]}  Nbd7 {[%clk 0:02:36]} 13. h3 {[%clk 0:02:16]}  Qc7 {[%clk 0:02:36]} 14. c4 {[%clk 0:02:08]}  bxc4 {[%clk 0:02:33]} 15. Nxc4 {[%clk 0:02:08]}  Nb6 {[%clk 0:02:32]} 16. Rac1 {[%clk 0:02:04]}  Nxc4 {[%clk 0:02:31]} 17. Rxc4 {[%clk 0:02:04]}  Qd7 {[%clk 0:02:30]} 18. Rfc1 {[%clk 0:02:03]}  Nd5 {[%clk 0:02:25]} 19. Bg3 {[%clk 0:02:00]}  g6 {[%clk 0:02:22]} 20. Be4 {[%clk 0:01:50]}  Rfc8 {[%clk 0:02:21]} 21. b3 {[%clk 0:01:30]}  Nb6 {[%clk 0:02:15]} 22. Bxb7 {[%clk 0:01:16]}  Qxb7 {[%clk 0:02:08]} 23. Rxc8+ {[%clk 0:01:16]}  Rxc8 {[%clk 0:02:09]} 24. Qd2 {[%clk 0:01:12]}  Rc6 {[%clk 0:01:59]} 25. Ne1 {[%clk 0:00:49]}  Qc8 {[%clk 0:01:58]} 26. Nd3 {[%clk 0:00:46]}  Nd5 {[%clk 0:01:57]} 27. Kf1 {[%clk 0:00:34]}  Rxc1+ {[%clk 0:01:55]} 28. Qxc1 {[%clk 0:00:34]}  Qxc1+ {[%clk 0:01:52]} 29. Nxc1 {[%clk 0:00:34]}  Nb4 {[%clk 0:01:50]} 30. Ke2 {[%clk 0:00:33]}  d5 {[%clk 0:01:50]} 31. Kd2 {[%clk 0:00:33]}  Bg5+ {[%clk 0:01:48]} 32. f4 {[%clk 0:00:32]}  Bf6 {[%clk 0:01:47]} 33. Kc3 {[%clk 0:00:28]}  Nc6 {[%clk 0:01:47]} 34. Bf2 {[%clk 0:00:28]}  Kf8 {[%clk 0:01:47]} 35. Nd3 {[%clk 0:00:28]}  Ke7 {[%clk 0:01:47]} 36. Ne5 {[%clk 0:00:29]}  Nd8 {[%clk 0:01:39]} 37. Kb4 {[%clk 0:00:28]}  Kd6 {[%clk 0:01:39]} 38. Ka5 {[%clk 0:00:28]}  Be7 {[%clk 0:01:31]} 39. Kxa6 {[%clk 0:00:28]}  f6 {[%clk 0:01:32]} 40. Nd3 {[%clk 0:00:27]}  Kc6 {[%clk 0:01:32]} 41. a4 {[%clk 0:00:27]}  Nb7 {[%clk 0:01:17]} 42. b4 {[%clk 0:00:27]}  Nd6 {[%clk 0:01:17]} 43. b5+ {[%clk 0:00:26]}  Kc7 {[%clk 0:01:17]} 44. b6+ {[%clk 0:00:26]}  Kc8 {[%clk 0:01:10]} 45. Nc5 {[%clk 0:00:26]}  Kb8 {[%clk 0:00:39]} 46. b7 {[%clk 0:00:21]}  Kc7 {[%clk 0:00:36]} 47. Nd7 {[%clk 0:00:19]}  Nxb7 {[%clk 0:00:34]} 48. Nc5 {[%clk 0:00:16]}  Bxc5 {[%clk 0:00:25]} 49. dxc5 {[%clk 0:00:17]}  Kc6 {[%clk 0:00:24]} 50. a5 {[%clk 0:00:16]}  e5 {[%clk 0:00:24]} 51. fxe5 {[%clk 0:00:16]}  fxe5 {[%clk 0:00:24]} 52. Ka7 {[%clk 0:00:15]}  d4 {[%clk 0:00:25]} 53. a6 {[%clk 0:00:15]}  Nxc5 {[%clk 0:00:25]} 54. Be1 {[%clk 0:00:13]}  Kb5 {[%clk 0:00:21]} 55. g4 {[%clk 0:00:11]}  Nxa6 {[%clk 0:00:21]} 56. Kb7 {[%clk 0:00:11]}  e4 {[%clk 0:00:21]} 57. h4 {[%clk 0:00:07]}  d3 {[%clk 0:00:22]} 58. Bd2 {[%clk 0:00:07]}  Nc5+ {[%clk 0:00:22]} 59. Kc7 {[%clk 0:00:07]}  Nb3 {[%clk 0:00:22]} 60. Be3 {[%clk 0:00:07]}  d2 {[%clk 0:00:22]} 61. Bxd2 {[%clk 0:00:07]}  Nxd2 {[%clk 0:00:23]} 0-1


[Site "https://www.chess.com"]

[Event "Titled Tuesday Blitz March 15 Early 2022"]
[White "Polster, Christian"]
[Black "Matinian, Nikita"]
[WhiteFideId "12965081"]
[BlackFideId "24129100"]
[WhiteElo "2314"]
[BlackElo "2422"]
[Result "0-1"]
[Round "08"]
[TimeControl "180+1"]
[Date "2022.03.15"]
[WhiteClock "0:01:16"]
[BlackClock "0:02:35"]

1. e4 {[%clk 0:03:00]}  c5 {[%clk 0:02:59]} 2. Nc3 {[%clk 0:02:59]}  Nc6 {[%clk 0:02:59]} 3. Nge2 {[%clk 0:03:00]}  g6 {[%clk 0:02:59]} 4. d4 {[%clk 0:02:59]}  cxd4 {[%clk 0:03:00]} 5. Nxd4 {[%clk 0:03:00]}  Bg7 {[%clk 0:03:01]} 6. Be3 {[%clk 0:03:01]}  d6 {[%clk 0:02:59]} 7. f3 {[%clk 0:02:55]}  Nf6 {[%clk 0:02:58]} 8. Bc4 {[%clk 0:02:53]}  O-O {[%clk 0:02:57]} 9. Bb3 {[%clk 0:02:53]}  Na5 {[%clk 0:02:56]} 10. g4 {[%clk 0:02:18]}  Bd7 {[%clk 0:02:44]} 11. Qe2 {[%clk 0:01:45]}  Rc8 {[%clk 0:02:41]} 12. O-O-O {[%clk 0:01:41]}  Nxb3+ {[%clk 0:02:39]} 13. cxb3 {[%clk 0:01:40]}  Bxg4 {[%clk 0:02:36]} 14. fxg4 {[%clk 0:01:36]}  Nxe4 {[%clk 0:02:36]} 15. Kb1 {[%clk 0:01:15]}  Rxc3 {[%clk 0:02:35]} 16. bxc3 {[%clk 0:01:16]}  Nxc3+ {[%clk 0:02:35]} 0-1


[Site "https://www.chess.com"]

[Event "Titled Tuesday Blitz March 15 Early 2022"]
[White "Shevchenko, Kirill"]
[Black "Samunenkov, Ihor"]
[WhiteFideId "14129574"]
[BlackFideId "14187086"]
[WhiteElo "2624"]
[BlackElo "2409"]
[Result "1-0"]
[Round "08"]
[TimeControl "180+1"]
[Date "2022.03.15"]
[WhiteClock "0:00:30"]
[BlackClock "0:00:14"]

1. e4 {[%clk 0:02:33]}  c6 {[%clk 0:02:59]} 2. Nc3 {[%clk 0:02:19]}  d5 {[%clk 0:02:57]} 3. Nf3 {[%clk 0:02:20]}  dxe4 {[%clk 0:02:55]} 4. Nxe4 {[%clk 0:02:20]}  Nf6 {[%clk 0:02:55]} 5. Qe2 {[%clk 0:02:21]}  Nxe4 {[%clk 0:02:53]} 6. Qxe4 {[%clk 0:02:22]}  Nd7 {[%clk 0:02:54]} 7. Bc4 {[%clk 0:02:21]}  Nf6 {[%clk 0:02:54]} 8. Ne5 {[%clk 0:02:21]}  e6 {[%clk 0:02:54]} 9. Qe2 {[%clk 0:02:21]}  b5 {[%clk 0:02:54]} 10. Bd3 {[%clk 0:02:17]}  Qc7 {[%clk 0:02:51]} 11. a4 {[%clk 0:02:13]}  Bd6 {[%clk 0:02:35]} 12. Nxc6 {[%clk 0:02:09]}  b4 {[%clk 0:02:35]} 13. Nd4 {[%clk 0:02:06]}  a6 {[%clk 0:02:35]} 14. Nf5 {[%clk 0:01:53]}  Bb7 {[%clk 0:02:33]} 15. Nxg7+ {[%clk 0:01:04]}  Kf8 {[%clk 0:02:07]} 16. Nh5 {[%clk 0:01:03]}  Nxh5 {[%clk 0:01:50]} 17. Qxh5 {[%clk 0:01:02]}  Bxg2 {[%clk 0:01:46]} 18. Rg1 {[%clk 0:00:43]}  Rg8 {[%clk 0:01:42]} 19. Bxh7 {[%clk 0:00:33]}  Rg7 {[%clk 0:00:51]} 20. d4 {[%clk 0:00:33]}  Bxh2 {[%clk 0:00:32]} 21. Bh6 {[%clk 0:00:33]}  Bxg1 {[%clk 0:00:26]} 22. Qg5 {[%clk 0:00:32]}  f6 {[%clk 0:00:13]} 23. Qxf6+ {[%clk 0:00:29]}  Qf7 {[%clk 0:00:14]} 24. Bxg7+ {[%clk 0:00:30]}  Ke8 {[%clk 0:00:14]} 25. Bg6 {[%clk 0:00:30]} 1-0


[Site "https://www.chess.com"]

[Event "Titled Tuesday Blitz March 15 Early 2022"]
[White "Spitzl, Vinzent"]
[Black "Coto Mederos, Michel"]
[WhiteFideId "12901253"]
[BlackFideId "3508528"]
[WhiteElo "2160"]
[BlackElo "2427"]
[Result "0-1"]
[Round "08"]
[TimeControl "180+1"]
[Date "2022.03.15"]
[WhiteClock "0:01:40"]
[BlackClock "0:00:44"]

1. e4 {[%clk 0:02:54]}  e5 {[%clk 0:02:35]} 2. Nf3 {[%clk 0:02:53]}  Nc6 {[%clk 0:02:33]} 3. Bc4 {[%clk 0:02:53]}  Bc5 {[%clk 0:02:32]} 4. c3 {[%clk 0:02:53]}  Nf6 {[%clk 0:02:32]} 5. d4 {[%clk 0:02:53]}  exd4 {[%clk 0:02:32]} 6. cxd4 {[%clk 0:02:54]}  Bb4+ {[%clk 0:02:33]} 7. Nc3 {[%clk 0:02:54]}  Nxe4 {[%clk 0:02:32]} 8. O-O {[%clk 0:02:54]}  Bxc3 {[%clk 0:02:32]} 9. d5 {[%clk 0:02:54]}  Bf6 {[%clk 0:02:33]} 10. Re1 {[%clk 0:02:54]}  Ne7 {[%clk 0:02:33]} 11. Rxe4 {[%clk 0:02:53]}  d6 {[%clk 0:02:34]} 12. Bg5 {[%clk 0:02:52]}  Bxg5 {[%clk 0:02:34]} 13. Nxg5 {[%clk 0:02:53]}  h6 {[%clk 0:02:35]} 14. Nxf7 {[%clk 0:02:53]}  Kxf7 {[%clk 0:02:34]} 15. Qf3+ {[%clk 0:02:53]}  Nf5 {[%clk 0:01:57]} 16. g4 {[%clk 0:02:53]}  Re8 {[%clk 0:01:46]} 17. gxf5 {[%clk 0:02:25]}  Rxe4 {[%clk 0:01:38]} 18. Qxe4 {[%clk 0:02:25]}  Qg5+ {[%clk 0:01:38]} 19. Kh1 {[%clk 0:02:22]}  Bxf5 {[%clk 0:01:37]} 20. Qd4 {[%clk 0:02:11]}  Re8 {[%clk 0:01:28]} 21. Bd3 {[%clk 0:01:59]}  Bh3 {[%clk 0:01:21]} 22. Be4 {[%clk 0:01:47]}  Qg4 {[%clk 0:00:50]} 23. Re1 {[%clk 0:01:40]}  Bg2+ {[%clk 0:00:44]} 0-1


[Site "https://www.chess.com"]

[Event "Titled Tuesday Blitz March 15 Early 2022"]
[White "Winkels, Marcel"]
[Black "Samaganova, Aleksandra"]
[WhiteFideId "1003887"]
[BlackFideId "13800221"]
[WhiteElo "1900"]
[BlackElo "1859"]
[Result "0-1"]
[Round "08"]
[TimeControl "180+1"]
[Date "2022.03.15"]
[WhiteClock "0:00:10"]
[BlackClock "0:00:08"]

1. e4 {[%clk 0:03:00]}  c5 {[%clk 0:02:59]} 2. Nf3 {[%clk 0:03:00]}  e6 {[%clk 0:03:00]} 3. d4 {[%clk 0:03:00]}  cxd4 {[%clk 0:03:00]} 4. Nxd4 {[%clk 0:03:00]}  a6 {[%clk 0:03:00]} 5. Bd3 {[%clk 0:02:58]}  Qc7 {[%clk 0:03:00]} 6. O-O {[%clk 0:02:57]}  Nf6 {[%clk 0:03:00]} 7. c4 {[%clk 0:02:55]}  b6 {[%clk 0:02:58]} 8. Nc3 {[%clk 0:02:54]}  Bb7 {[%clk 0:02:56]} 9. Nf3 {[%clk 0:02:46]}  d6 {[%clk 0:02:55]} 10. Re1 {[%clk 0:02:44]}  Nbd7 {[%clk 0:02:54]} 11. Bf4 {[%clk 0:02:43]}  Ne5 {[%clk 0:02:46]} 12. Rc1 {[%clk 0:02:36]}  Be7 {[%clk 0:02:42]} 13. h3 {[%clk 0:02:31]}  O-O {[%clk 0:02:41]} 14. Bb1 {[%clk 0:02:25]}  Rac8 {[%clk 0:02:27]} 15. b3 {[%clk 0:02:24]}  Rfd8 {[%clk 0:02:20]} 16. Qe2 {[%clk 0:02:18]}  Nfd7 {[%clk 0:01:46]} 17. Nxe5 {[%clk 0:02:12]}  dxe5 {[%clk 0:01:40]} 18. Be3 {[%clk 0:02:11]}  Bb4 {[%clk 0:01:02]} 19. Red1 {[%clk 0:02:07]}  Nb8 {[%clk 0:00:54]} 20. Na4 {[%clk 0:02:04]}  Nd7 {[%clk 0:00:45]} 21. f3 {[%clk 0:01:54]}  Bc6 {[%clk 0:00:41]} 22. Nc3 {[%clk 0:01:51]}  Bc5 {[%clk 0:00:35]} 23. Rd2 {[%clk 0:01:44]}  h6 {[%clk 0:00:23]} 24. Rcd1 {[%clk 0:01:43]}  Bxe3+ {[%clk 0:00:18]} 25. Qxe3 {[%clk 0:01:42]}  b5 {[%clk 0:00:19]} 26. cxb5 {[%clk 0:01:33]}  axb5 {[%clk 0:00:19]} 27. Rc2 {[%clk 0:01:33]}  Qb6 {[%clk 0:00:14]} 28. Qxb6 {[%clk 0:01:30]}  Nxb6 {[%clk 0:00:15]} 29. Rdc1 {[%clk 0:01:27]}  Be8 {[%clk 0:00:13]} 30. Kf2 {[%clk 0:01:23]}  Kf8 {[%clk 0:00:12]} 31. Ke2 {[%clk 0:01:23]}  Ke7 {[%clk 0:00:12]} 32. Rd2 {[%clk 0:01:22]}  Rxd2+ {[%clk 0:00:11]} 33. Kxd2 {[%clk 0:01:22]}  Kd6 {[%clk 0:00:07]} 34. Bd3 {[%clk 0:01:20]}  b4 {[%clk 0:00:06]} 35. Nd1 {[%clk 0:01:17]}  Rxc1 {[%clk 0:00:05]} 36. Kxc1 {[%clk 0:01:17]}  Kc5 {[%clk 0:00:05]} 37. Kd2 {[%clk 0:01:15]}  Kd4 {[%clk 0:00:05]} 38. Ne3 {[%clk 0:01:15]}  f6 {[%clk 0:00:04]} 39. Bc4 {[%clk 0:01:10]}  Bd7 {[%clk 0:00:03]} 40. g4 {[%clk 0:01:08]}  Kc5 {[%clk 0:00:02]} 41. h4 {[%clk 0:01:06]}  g6 {[%clk 0:00:02]} 42. Kd3 {[%clk 0:01:00]}  f5 {[%clk 0:00:02]} 43. gxf5 {[%clk 0:00:58]}  gxf5 {[%clk 0:00:02]} 44. Nc2 {[%clk 0:00:49]}  f4 {[%clk 0:00:02]} 45. Ne1 {[%clk 0:00:46]}  Bc8 {[%clk 0:00:02]} 46. Nc2 {[%clk 0:00:16]}  Nxc4 {[%clk 0:00:02]} 47. bxc4 {[%clk 0:00:16]}  Ba6 {[%clk 0:00:03]} 48. Kd2 {[%clk 0:00:15]}  Bxc4 {[%clk 0:00:03]} 49. Ne1 {[%clk 0:00:13]}  Bxa2 {[%clk 0:00:03]} 50. Kc2 {[%clk 0:00:13]}  Bc4 {[%clk 0:00:02]} 51. Kb2 {[%clk 0:00:13]}  Be2 {[%clk 0:00:02]} 52. Kb3 {[%clk 0:00:11]}  Kb5 {[%clk 0:00:02]} 53. Nc2 {[%clk 0:00:10]}  Bd1 {[%clk 0:00:02]} 54. Kb2 {[%clk 0:00:09]}  Bxc2 {[%clk 0:00:02]} 55. Kxc2 {[%clk 0:00:09]}  Kc4 {[%clk 0:00:03]} 56. Kb2 {[%clk 0:00:09]}  Kd3 {[%clk 0:00:04]} 57. Kb3 {[%clk 0:00:09]}  Ke3 {[%clk 0:00:05]} 58. Kxb4 {[%clk 0:00:09]}  Kxf3 {[%clk 0:00:06]} 59. Kc5 {[%clk 0:00:09]}  Kxe4 {[%clk 0:00:06]} 60. Kd6 {[%clk 0:00:10]}  f3 {[%clk 0:00:07]} 61. Kxe6 {[%clk 0:00:10]}  f2 {[%clk 0:00:07]} 62. Kf6 {[%clk 0:00:10]}  f1=Q+ {[%clk 0:00:08]} 0-1


[Site "https://www.chess.com"]

[Event "Titled Tuesday Blitz March 15 Early 2022"]
[White "Xu, Yi"]
[Black "Vlassov, Nikolai"]
[WhiteFideId "8605564"]
[BlackFideId "4103360"]
[WhiteElo "2471"]
[BlackElo "2407"]
[Result "1-0"]
[Round "08"]
[TimeControl "180+1"]
[Date "2022.03.15"]
[WhiteClock "0:00:34"]
[BlackClock "0:00:23"]

1. e4 {[%clk 0:02:59]}  Nc6 {[%clk 0:02:59]} 2. Nf3 {[%clk 0:02:58]}  d5 {[%clk 0:02:59]} 3. exd5 {[%clk 0:02:57]}  Qxd5 {[%clk 0:02:58]} 4. Nc3 {[%clk 0:02:58]}  Qa5 {[%clk 0:02:58]} 5. d4 {[%clk 0:02:58]}  Bg4 {[%clk 0:02:58]} 6. Bb5 {[%clk 0:02:52]}  O-O-O {[%clk 0:02:58]} 7. Bxc6 {[%clk 0:02:52]}  bxc6 {[%clk 0:02:58]} 8. h3 {[%clk 0:02:50]}  Qh5 {[%clk 0:02:57]} 9. Be3 {[%clk 0:02:41]}  e5 {[%clk 0:02:56]} 10. Qe2 {[%clk 0:02:32]}  Bxf3 {[%clk 0:02:53]} 11. gxf3 {[%clk 0:02:25]}  exd4 {[%clk 0:02:53]} 12. O-O-O {[%clk 0:02:24]}  Bc5 {[%clk 0:02:49]} 13. Na4 {[%clk 0:02:10]}  Ne7 {[%clk 0:02:39]} 14. Qa6+ {[%clk 0:01:55]}  Kb8 {[%clk 0:02:32]} 15. Qa5 {[%clk 0:01:55]}  dxe3 {[%clk 0:01:54]} 16. Nxc5 {[%clk 0:01:47]}  Rd5 {[%clk 0:01:15]} 17. Qb4+ {[%clk 0:01:09]}  Kc8 {[%clk 0:01:15]} 18. Qb7+ {[%clk 0:01:09]}  Kd8 {[%clk 0:01:15]} 19. Qa8+ {[%clk 0:01:09]}  Nc8 {[%clk 0:01:14]} 20. Qxc6 {[%clk 0:01:06]}  Nb6 {[%clk 0:00:34]} 21. Rxd5+ {[%clk 0:00:43]}  Qxd5 {[%clk 0:00:33]} 22. Rd1 {[%clk 0:00:40]}  Qxd1+ {[%clk 0:00:26]} 23. Kxd1 {[%clk 0:00:40]}  exf2 {[%clk 0:00:27]} 24. Ke2 {[%clk 0:00:39]}  Re8+ {[%clk 0:00:27]} 25. Kxf2 {[%clk 0:00:38]}  Re5 {[%clk 0:00:25]} 26. Nb7+ {[%clk 0:00:34]}  Kc8 {[%clk 0:00:24]} 27. Nd6+ {[%clk 0:00:34]}  Kb8 {[%clk 0:00:23]} 28. Qb7# {[%clk 0:00:34]} 1-0


[Site "https://www.chess.com"]

[Event "Titled Tuesday Blitz March 15 Early 2022"]
[White "Zong, Davis"]
[Black "Shtyka, Sergey"]
[WhiteFideId "30903955"]
[BlackFideId "4138465"]
[WhiteElo "2061"]
[BlackElo "2014"]
[Result "0-1"]
[Round "08"]
[TimeControl "180+1"]
[Date "2022.03.15"]
[WhiteClock "0:00:16"]
[BlackClock "0:01:26"]

1. e4 {[%clk 0:03:00]}  c5 {[%clk 0:02:11]} 2. Nf3 {[%clk 0:03:00]}  d6 {[%clk 0:02:10]} 3. d4 {[%clk 0:03:00]}  cxd4 {[%clk 0:02:11]} 4. Nxd4 {[%clk 0:03:01]}  Nf6 {[%clk 0:02:12]} 5. Nc3 {[%clk 0:03:01]}  g6 {[%clk 0:02:12]} 6. Be3 {[%clk 0:03:00]}  Bg7 {[%clk 0:02:12]} 7. f3 {[%clk 0:02:57]}  O-O {[%clk 0:02:12]} 8. Qd2 {[%clk 0:02:57]}  Nc6 {[%clk 0:02:12]} 9. O-O-O {[%clk 0:02:57]}  d5 {[%clk 0:02:12]} 10. Nxc6 {[%clk 0:02:55]}  bxc6 {[%clk 0:02:13]} 11. exd5 {[%clk 0:02:55]}  Nxd5 {[%clk 0:02:14]} 12. Bd4 {[%clk 0:02:56]}  e5 {[%clk 0:02:14]} 13. Bc5 {[%clk 0:02:49]}  Be6 {[%clk 0:02:14]} 14. Bxf8 {[%clk 0:02:24]}  Qxf8 {[%clk 0:02:13]} 15. Bc4 {[%clk 0:01:54]}  Bh6 {[%clk 0:02:11]} 16. f4 {[%clk 0:01:25]}  Bxf4 {[%clk 0:02:08]} 17. Nxd5 {[%clk 0:01:18]}  cxd5 {[%clk 0:02:02]} 18. Qxf4 {[%clk 0:01:08]}  exf4 {[%clk 0:02:00]} 19. Bb3 {[%clk 0:01:09]}  d4 {[%clk 0:01:56]} 20. Rxd4 {[%clk 0:01:02]}  Bxb3 {[%clk 0:01:55]} 21. axb3 {[%clk 0:01:03]}  Qc5 {[%clk 0:01:52]} 22. Rhd1 {[%clk 0:01:01]}  Rc8 {[%clk 0:01:49]} 23. c3 {[%clk 0:00:56]}  g5 {[%clk 0:01:48]} 24. b4 {[%clk 0:00:49]}  Qf5 {[%clk 0:01:45]} 25. h3 {[%clk 0:00:41]}  h5 {[%clk 0:01:45]} 26. Rd5 {[%clk 0:00:32]}  Qf6 {[%clk 0:01:41]} 27. R1d4 {[%clk 0:00:26]}  Re8 {[%clk 0:01:35]} 28. Kc2 {[%clk 0:00:19]}  Re2+ {[%clk 0:01:33]} 29. Kb3 {[%clk 0:00:20]}  Rxg2 {[%clk 0:01:32]} 30. Rc5 {[%clk 0:00:18]}  Kg7 {[%clk 0:01:28]} 31. Rc8 {[%clk 0:00:17]}  Qe6+ {[%clk 0:01:27]} 32. Ka3 {[%clk 0:00:16]}  Qxc8 {[%clk 0:01:26]} 0-1


[Site "https://www.chess.com"]